Workbook

Sheet 1(定)
A1: 附件1
A2: 2019年全区棚户区改造开工情况通报表 （截至2019年5月25日） | R2: 今年新开工
A3: 任务 城市 | B3: 2019年度国家目标任务 | K3: 2019年自治区新增任务 | O3: 任务 城市 | P3: 2019年国家 | Q3: 2018自治区新增 | R3: 2019年国家 | S3: 2018自治区新增 | T3: 2019年国家储备 | U3: 2019自治区新增 | V3: 2018年开工底数(2018年自治区新增)
B4: 年度目标责任套（户）数 | C4: 总改造套数 | D4: 总改造完成率 | E4: 其中：2019年国家下达责任目标任务（含2018年自治区新增任务结转） | H4: 其中：2019年国家储备 | K4: 城市棚户区改造完成情况
E5: 目标责任套数 | F5: 改造户数 | G5: 改造完成率 | H5: 目标责任套数 | I5: 改造户数 | J5: 改造完成率 | K5: 目标任务套数 | L5: 改造户数 | M5: 改造完成率
A7: 编号栏 | B7: 1=4+7 | C7: 2=5+8 | D7: 3=2/1 | E7: 4 | F7: 5 | G7: 6=5/4 | H7: 7 | I7: 8 | J7: 9=8/7 | K7: 10 | L7: 11 | M7: 12=11/10 | O7: 编号栏 | P7: / | Q7: /
A8: 国家任务 | B8: 120000 | C8: =SUM(C10:C25) -> 46503 | D8: =C8/B8 -> 38.75% | E8: 120000 | F8: =SUM(F10:F25) -> 43078 | G8: =F8/E8 -> 35.90% | H8: - | I8: - | J8: - | K8: - | L8: - | M8: - | O8: 国家任务 | P8: / | Q8: /
A9: 自治区任务数 | B9: =SUM(B10:B25) -> 153742 | C9: =SUM(C10:C25) -> 46503 | D9: 30.25% | E9: =SUM(E10:E23) -> 123613 | F9: =SUM(F10:F25) -> 43078 | G9: 34.85% | H9: =SUM(H10:H25) -> 24756 | I9: =SUM(I10:I25) -> 3425 | J9: =I9/H9 -> 13.84% | K9: =SUM(K10:K25) -> 99690 | L9: =SUM(L10:L25) -> 1468 | M9: =L9/K9 -> 1.47% | O9: 自治区任务数 | P9: =SUM(P10:P23) -> 16933 | Q9: =SUM(Q10:Q23) -> 22038 | V9: =SUM(V10:V23) -> 23572
A10: 南宁市 | B10: =E10+H10 -> 9050 | C10: =F10+I10 -> 3942 | D10: 43.56% | E10: 7051 | F10: =P10+Q10 -> 3942 | G10: 55.91% | H10: 1999 | I10: 0 | J10: =I10/H10 -> 0.00% | K10: 8773 | L10: 0 | M10: 0.00% | O10: 南宁市 | P10: 1417 | Q10: 2525 | R10: 1417 | S10: 2525 | T10: 0 | U10: 0 | V10: 2525
A11: 柳州市 | B11: =E11 -> 11061 | C11: =F11 -> 4241 | D11: 38.34% | E11: 11061 | F11: =P11+Q11 -> 4241 | G11: 38.34% | H11: - | I11: - | J11: - | K11: 11020 | L11: 500 | M11: 4.54% | O11: 柳州市 | P11: 1989 | Q11: 2252 | R11: 1989 | S11: 0 | T11: - | U11: 500 | V11: 2252
A12: 桂林市 | B12: =E12 -> 5984 | C12: =F12 -> 2465 | D12: 41.19% | E12: 5984 | F12: =P12+Q12 -> 2465 | G12: 41.19% | H12: - | I12: - | J12: - | K12: 4850 | L12: 0 | M12: 0.00% | O12: 桂林市 | P12: 96 | Q12: 2369 | R12: 96 | S12: 0 | T12: - | U12: 0 | V12: 2369
A13: 梧州市 | B13: =E13+H13 -> 4099 | C13: =F13+I13 -> 1180 | D13: 28.79% | E13: 3766 | F13: =P13+Q13 -> 1180 | G13: 31.33% | H13: 333 | I13: 0 | J13: =I13/H13 -> 0.00% | K13: 8402 | L13: 0 | M13: 0.00% | O13: 梧州市 | P13: 303 | Q13: 877 | R13: 303 | S13: 877 | T13: 333 | U13: 0 | V13: 0
A14: 北海市 | B14: =E14 -> 241 | C14: =F14 -> 241 | D14: 100.00% | E14: 241 | F14: =P14+Q14 -> 241 | G14: 100.00% | H14: - | I14: - | J14: - | K14: 439 | L14: 0 | M14: 0.00% | O14: 北海市 | P14: 0 | Q14: 241 | R14: 0 | S14: 0 | T14: - | U14: 0 | V14: 241
A15: 防城港市 | B15: =E15 -> 1514 | C15: =F15 -> 0 | D15: 0.00% | E15: 1514 | F15: =P15 -> 0 | G15: 0.00% | H15: - | I15: - | J15: - | K15: 1541 | L15: 0 | M15: 0.00% | O15: 防城港市 | P15: 0 | R15: 0 | S15: / | T15: - | U15: 0
A16: 钦州市 | B16: =E16+H16 -> 8700 | C16: =F16+I16 -> 424 | D16: 4.87% | E16: 6791 | F16: =P16+Q16 -> 424 | G16: 6.24% | H16: 1909 | I16: 0 | J16: =I16/H16 -> 0.00% | K16: 3141 | L16: 0 | M16: 0.00% | O16: 钦州市 | P16: 228 | Q16: 196 | R16: 228 | S16: 8 | T16: 0 | U16: 0 | V16: 188
A17: 贵港市 | B17: =E17 -> 2848 | C17: =F17 -> 2192 | D17: 76.97% | E17: 2848 | F17: 2192 | G17: 76.97% | H17: - | I17: - | J17: - | K17: 4952 | L17: 0 | M17: 0.00% | O17: 贵港市 | P17: 0 | Q17: 2192 | R17: 0 | S17: 2192 | T17: - | U17: 0 | V17: 2152
A18: 玉林市 | B18: =E18 -> 6178 | C18: =F18 -> 670 | D18: 10.84% | E18: 6178 | F18: 670 | G18: 10.84% | H18: - | I18: - | J18: - | K18: 2401 | L18: 0 | M18: 0.00% | O18: 玉林市 | P18: 0 | Q18: 670 | R18: 未入库 | S18: 0 | T18: - | U18: 未入库 | V18: 670
A19: 百色市 | B19: =E19+H19 -> 53472 | C19: =F19+I19 -> 10134 | D19: 18.95% | E19: 44714 | F19: 10134 | G19: 22.66% | H19: 8758 | I19: =T19 -> 0 | J19: =I19/H19 -> 0.00% | K19: 23036 | L19: 0 | M19: 0.00% | O19: 百色市 | P19: 6827 | Q19: 3307 | S19: 492 | T19: 0 | U19: 0 | V19: =14481-6827 -> 7654
A20: 贺州市 | B20: =E20+H20 -> 16740 | C20: =F20+I20 -> 5750 | D20: 34.35% | E20: 12303 | F20: 5437 | G20: 44.19% | H20: 4437 | I20: 313 | J20: =I20/H20 -> 7.05% | K20: 15124 | L20: 968 | M20: 6.40% | O20: 贺州市 | P20: 3264 | Q20: 2173 | R20: 3264 | S20: 650 | T20: 313 | U20: 968 | V20: 1685
A21: 河池市 | B21: =E21 -> 3855 | C21: =F21 -> 719 | D21: 18.65% | E21: 3855 | F21: 719 | G21: 18.65% | H21: - | I21: - | J21: - | K21: 956 | L21: 0 | M21: 0.00% | O21: 河池市 | P21: 110 | Q21: 609 | R21: 0 | S21: 0 | T21: - | U21: 0 | V21: 609
A22: 来宾市 | B22: =E22+H22 -> 6657 | C22: =F22+I22 -> 608 | D22: 9.13% | E22: 5995 | F22: 608 | G22: 10.14% | H22: 662 | I22: 0 | J22: =I22/H22 -> 0.00% | K22: 3506 | L22: 0 | M22: 0.00% | O22: 来宾市 | P22: 0 | Q22: 608 | R22: 0 | S22: 300 | T22: 未入库 | U22: 0 | V22: 308
A23: 崇左市 | B23: =E23+H23 -> 15258 | C23: =F23+I23 -> 7118 | D23: 46.65% | E23: 11312 | F23: 6718 | G23: 59.39% | H23: 3946 | I23: 400 | J23: =I23/H23 -> 10.14% | K23: 9114 | L23: 0 | M23: 0.00% | O23: 崇左市 | P23: 2699 | Q23: 4019 | R23: 2699 | S23: 1100 | T23: 400 | U23: 0 | V23: 2919
A24: 区直危旧房改造 | B24: 5373 | C24: 4107 | D24: 76.44% | E24: 5373 | F24: 4107 | G24: 76.44% | H24: - | I24: - | J24: - | K24: - | L24: - | M24: -
A25: 南宁危旧房改造 | B25: =H25 -> 2712 | C25: =I25 -> 2712 | D25: 100.00% | E25: - | F25: - | G25: - | H25: 2712 | I25: 2712 | J25: =I25/H25 -> 100.00% | K25: 2435 | M25: =L25/K25 -> 0.00% | O25: 南宁危旧房改造
